[Event "Titled Tuesday Blitz May 4 2021"]
[White "Baglan, Esat"]
[Black "Astafurov, Arseniy"]
[WhiteFideId "6309216"]
[BlackFideId "24175218"]
[WhiteElo "2107"]
[BlackElo "2163"]
[Result "1-0"]
[Round "06"]
[TimeControl "180+1"]
[Date "2021.05.04"]
[WhiteClock "0:00:16"]
[BlackClock "0:00:09"]

1. e4 {[%clk 0:02:55]}  e6 {[%clk 0:03:00]} 2. d3 {[%clk 0:02:54]}  d5 {[%clk 0:03:01]} 3. Nd2 {[%clk 0:02:54]}  Nc6 {[%clk 0:03:00]} 4. Ngf3 {[%clk 0:02:53]}  Nf6 {[%clk 0:03:01]} 5. g3 {[%clk 0:02:52]}  e5 {[%clk 0:03:00]} 6. Bg2 {[%clk 0:02:52]}  dxe4 {[%clk 0:02:55]} 7. dxe4 {[%clk 0:02:53]}  Bc5 {[%clk 0:02:53]} 8. O-O {[%clk 0:02:52]}  O-O {[%clk 0:02:53]} 9. c3 {[%clk 0:02:48]}  a5 {[%clk 0:02:53]} 10. Qc2 {[%clk 0:02:43]}  b6 {[%clk 0:02:53]} 11. Nc4 {[%clk 0:02:26]}  Ba6 {[%clk 0:02:49]} 12. Rd1 {[%clk 0:02:23]}  Qe8 {[%clk 0:02:30]} 13. b3 {[%clk 0:02:21]}  a4 {[%clk 0:02:22]} 14. Bg5 {[%clk 0:02:15]}  Nd7 {[%clk 0:02:21]} 15. Ne3 {[%clk 0:02:04]}  h6 {[%clk 0:01:37]} 16. Bxh6 {[%clk 0:01:50]}  gxh6 {[%clk 0:01:36]} 17. Nf5 {[%clk 0:01:50]}  Nf6 {[%clk 0:01:05]} 18. Nxh6+ {[%clk 0:01:44]}  Kh8 {[%clk 0:01:05]} 19. Nf5 {[%clk 0:01:29]}  Ne7 {[%clk 0:00:35]} 20. Qd2 {[%clk 0:01:02]}  Nxf5 {[%clk 0:00:33]} 21. exf5 {[%clk 0:00:59]}  Rg8 {[%clk 0:00:21]} 22. Qh6+ {[%clk 0:00:47]}  Nh7 {[%clk 0:00:21]} 23. f6 {[%clk 0:00:34]}  Qe6 {[%clk 0:00:18]} 24. Ng5 {[%clk 0:00:22]}  Rxg5 {[%clk 0:00:15]} 25. Be4 {[%clk 0:00:22]}  Bxf2+ {[%clk 0:00:09]} 26. Kg2 {[%clk 0:00:18]}  Rf5 {[%clk 0:00:09]} 27. Qg7# {[%clk 0:00:16]} 1-0


[Site "https://www.chess.com"]

[Event "Titled Tuesday Blitz May 4 2021"]
[White "Baker, Chris W"]
[Black "DieHardCuban"]
[WhiteFideId "401676"]
[WhiteElo "2217"]
[BlackElo "2401"]
[Result "0-1"]
[Round "06"]
[TimeControl "180+1"]
[Date "2021.05.04"]
[WhiteClock "0:00:18"]
[BlackClock "0:00:06"]

1. e4 {[%clk 0:03:00]}  c6 {[%clk 0:02:58]} 2. d4 {[%clk 0:03:00]}  d5 {[%clk 0:02:58]} 3. Nd2 {[%clk 0:03:00]}  dxe4 {[%clk 0:02:57]} 4. Nxe4 {[%clk 0:03:00]}  Bf5 {[%clk 0:02:55]} 5. Ng3 {[%clk 0:03:00]}  Bg6 {[%clk 0:02:56]} 6. N1e2 {[%clk 0:03:00]}  Nd7 {[%clk 0:02:34]} 7. Nf4 {[%clk 0:02:59]}  e6 {[%clk 0:02:35]} 8. h4 {[%clk 0:02:58]}  Ne7 {[%clk 0:02:28]} 9. h5 {[%clk 0:02:55]}  Bf5 {[%clk 0:02:27]} 10. Bc4 {[%clk 0:02:41]}  Nb6 {[%clk 0:02:18]} 11. Bb3 {[%clk 0:02:41]}  Qc7 {[%clk 0:02:10]} 12. c3 {[%clk 0:02:34]}  O-O-O {[%clk 0:02:09]} 13. Qf3 {[%clk 0:02:31]}  Nbd5 {[%clk 0:01:48]} 14. Nxd5 {[%clk 0:02:25]}  cxd5 {[%clk 0:01:49]} 15. Bf4 {[%clk 0:02:21]}  Qb6 {[%clk 0:01:47]} 16. O-O-O {[%clk 0:02:13]}  h6 {[%clk 0:01:41]} 17. Nxf5 {[%clk 0:02:08]}  Nxf5 {[%clk 0:01:42]} 18. g4 {[%clk 0:02:07]}  Nd6 {[%clk 0:01:35]} 19. Bxd6 {[%clk 0:02:07]}  Qxd6 {[%clk 0:01:31]} 20. Qxf7 {[%clk 0:02:04]}  Be7 {[%clk 0:01:31]} 21. Rde1 {[%clk 0:02:00]}  Bg5+ {[%clk 0:01:31]} 22. Kb1 {[%clk 0:01:59]}  Rde8 {[%clk 0:01:28]} 23. Re2 {[%clk 0:01:56]}  Re7 {[%clk 0:01:17]} 24. Qg6 {[%clk 0:01:55]}  Rf8 {[%clk 0:01:14]} 25. Rhe1 {[%clk 0:01:55]}  Rf6 {[%clk 0:01:13]} 26. Qh7 {[%clk 0:01:50]}  Kc7 {[%clk 0:00:58]} 27. a3 {[%clk 0:01:50]}  a6 {[%clk 0:00:57]} 28. Ka2 {[%clk 0:01:49]}  Bh4 {[%clk 0:00:46]} 29. Bc2 {[%clk 0:01:44]}  Rxf2 {[%clk 0:00:43]} 30. Rxf2 {[%clk 0:01:33]}  Bxf2 {[%clk 0:00:44]} 31. Re2 {[%clk 0:01:27]}  Bh4 {[%clk 0:00:43]} 32. Qg8 {[%clk 0:01:25]}  Bf6 {[%clk 0:00:42]} 33. Bg6 {[%clk 0:01:23]}  e5 {[%clk 0:00:41]} 34. dxe5 {[%clk 0:01:21]}  Bxe5 {[%clk 0:00:39]} 35. Bf5 {[%clk 0:01:18]}  Kb6 {[%clk 0:00:36]} 36. Qc8 {[%clk 0:01:12]}  d4 {[%clk 0:00:32]} 37. c4 {[%clk 0:01:06]}  d3 {[%clk 0:00:25]} 38. c5+ {[%clk 0:01:06]}  Qxc5 {[%clk 0:00:25]} 39. Qxc5+ {[%clk 0:01:05]}  Kxc5 {[%clk 0:00:24]} 40. Bxd3 {[%clk 0:01:05]}  Kd4 {[%clk 0:00:23]} 41. Bf5 {[%clk 0:01:05]}  Rc7 {[%clk 0:00:22]} 42. Rd2+ {[%clk 0:01:01]}  Ke3 {[%clk 0:00:20]} 43. Rd3+ {[%clk 0:00:59]}  Kf4 {[%clk 0:00:20]} 44. Kb3 {[%clk 0:00:55]}  Rc6 {[%clk 0:00:20]} 45. Rd2 {[%clk 0:00:39]}  Ke3 {[%clk 0:00:17]} 46. Rc2 {[%clk 0:00:38]}  Rb6+ {[%clk 0:00:17]} 47. Ka2 {[%clk 0:00:37]}  Bd4 {[%clk 0:00:16]} 48. b4 {[%clk 0:00:37]}  a5 {[%clk 0:00:16]} 49. Kb3 {[%clk 0:00:36]}  Kf4 {[%clk 0:00:12]} 50. Rc4 {[%clk 0:00:34]}  Ke5 {[%clk 0:00:11]} 51. Ka4 {[%clk 0:00:30]}  axb4 {[%clk 0:00:11]} 52. axb4 {[%clk 0:00:29]}  Ra6+ {[%clk 0:00:10]} 53. Kb3 {[%clk 0:00:28]}  Rb6 {[%clk 0:00:04]} 54. Rc7 {[%clk 0:00:27]}  Kf4 {[%clk 0:00:04]} 55. Rc4 {[%clk 0:00:24]}  Ke3 {[%clk 0:00:04]} 56. Rc7 {[%clk 0:00:23]}  Be5 {[%clk 0:00:03]} 57. Kc4 {[%clk 0:00:22]}  Bxc7 {[%clk 0:00:02]} 58. b5 {[%clk 0:00:22]}  Bd8 {[%clk 0:00:03]} 59. Kc5 {[%clk 0:00:20]}  Rf6 {[%clk 0:00:04]} 60. Kd5 {[%clk 0:00:19]}  Rxf5+ {[%clk 0:00:04]} 61. gxf5 {[%clk 0:00:18]}  Kf4 {[%clk 0:00:05]} 62. Ke6 {[%clk 0:00:19]}  Kg5 {[%clk 0:00:05]} 63. Kf7 {[%clk 0:00:18]}  Bf6 {[%clk 0:00:06]} 0-1


[Site "https://www.chess.com"]

[Event "Titled Tuesday Blitz May 4 2021"]
[White "Bartel, Michal"]
[Black "Fier, Alexandr"]
[WhiteFideId "1119257"]
[BlackFideId "2107139"]
[WhiteElo "2271"]
[BlackElo "2569"]
[Result "0-1"]
[Round "06"]
[TimeControl "180+1"]
[Date "2021.05.04"]
[WhiteClock "0:00:12"]
[BlackClock "0:00:20"]

1. e4 {[%clk 0:03:00]}  c5 {[%clk 0:02:59]} 2. Ne2 {[%clk 0:03:00]}  g6 {[%clk 0:02:55]} 3. g3 {[%clk 0:03:00]}  Bg7 {[%clk 0:02:55]} 4. Bg2 {[%clk 0:03:01]}  Nc6 {[%clk 0:02:55]} 5. c3 {[%clk 0:03:02]}  e5 {[%clk 0:02:50]} 6. d3 {[%clk 0:03:02]}  d6 {[%clk 0:02:50]} 7. Be3 {[%clk 0:03:02]}  Nge7 {[%clk 0:02:50]} 8. Nd2 {[%clk 0:03:02]}  O-O {[%clk 0:02:50]} 9. f4 {[%clk 0:03:02]}  f5 {[%clk 0:02:48]} 10. O-O {[%clk 0:03:02]}  d5 {[%clk 0:02:44]} 11. Bxc5 {[%clk 0:02:59]}  fxe4 {[%clk 0:02:37]} 12. dxe4 {[%clk 0:02:59]}  d4 {[%clk 0:02:37]} 13. fxe5 {[%clk 0:02:55]}  d3 {[%clk 0:02:35]} 14. Rxf8+ {[%clk 0:02:47]}  Bxf8 {[%clk 0:02:35]} 15. Nf4 {[%clk 0:02:44]}  Nxe5 {[%clk 0:02:35]} 16. Nb3 {[%clk 0:02:40]}  N7c6 {[%clk 0:02:31]} 17. Bxf8 {[%clk 0:02:38]}  Kxf8 {[%clk 0:02:31]} 18. Qd2 {[%clk 0:02:23]}  b6 {[%clk 0:02:07]} 19. Rf1 {[%clk 0:02:22]}  Kg8 {[%clk 0:02:06]} 20. Nd5 {[%clk 0:02:22]}  Kg7 {[%clk 0:01:54]} 21. Nd4 {[%clk 0:02:16]}  Bd7 {[%clk 0:01:49]} 22. Qf4 {[%clk 0:01:58]}  Qf8 {[%clk 0:01:34]} 23. Qg5 {[%clk 0:01:42]}  Qd6 {[%clk 0:01:26]} 24. Rf6 {[%clk 0:01:38]}  Qc5 {[%clk 0:01:26]} 25. Qe3 {[%clk 0:01:10]}  Ng4 {[%clk 0:01:11]} 26. Rxc6 {[%clk 0:00:52]}  Nxe3 {[%clk 0:00:49]} 27. Rxc5 {[%clk 0:00:52]}  bxc5 {[%clk 0:00:50]} 28. Nxe3 {[%clk 0:00:50]}  cxd4 {[%clk 0:00:50]} 29. cxd4 {[%clk 0:00:51]}  Rc8 {[%clk 0:00:50]} 30. Kf2 {[%clk 0:00:51]}  Rc1 {[%clk 0:00:50]} 31. Bf3 {[%clk 0:00:46]}  Rb1 {[%clk 0:00:49]} 32. b3 {[%clk 0:00:43]}  Rb2+ {[%clk 0:00:49]} 33. Ke1 {[%clk 0:00:44]}  Rxa2 {[%clk 0:00:45]} 34. d5 {[%clk 0:00:44]}  Kf6 {[%clk 0:00:43]} 35. Nc4 {[%clk 0:00:41]}  Bb5 {[%clk 0:00:36]} 36. e5+ {[%clk 0:00:39]}  Kf5 {[%clk 0:00:37]} 37. e6 {[%clk 0:00:37]}  Kf6 {[%clk 0:00:37]} 38. Nd6 {[%clk 0:00:31]}  a6 {[%clk 0:00:26]} 39. Ne4+ {[%clk 0:00:26]}  Ke5 {[%clk 0:00:26]} 40. e7 {[%clk 0:00:25]}  Kd4 {[%clk 0:00:21]} 41. Nd6 {[%clk 0:00:17]}  Ke3 {[%clk 0:00:21]} 42. Nxb5 {[%clk 0:00:16]}  Ra1+ {[%clk 0:00:21]} 43. Bd1 {[%clk 0:00:15]}  d2+ {[%clk 0:00:22]} 44. Kf1 {[%clk 0:00:15]}  Rxd1+ {[%clk 0:00:23]} 45. Kg2 {[%clk 0:00:16]}  Rg1+ {[%clk 0:00:22]} 46. Kh3 {[%clk 0:00:14]}  d1=Q {[%clk 0:00:22]} 47. e8=Q+ {[%clk 0:00:15]}  Kd2 {[%clk 0:00:23]} 48. Qe5 {[%clk 0:00:08]}  Qf1+ {[%clk 0:00:17]} 49. Kh4 {[%clk 0:00:08]}  axb5 {[%clk 0:00:18]} 50. Qd4+ {[%clk 0:00:08]}  Kc2 {[%clk 0:00:17]} 51. d6 {[%clk 0:00:08]}  Rg2 {[%clk 0:00:15]} 52. h3 {[%clk 0:00:08]}  Rd2 {[%clk 0:00:14]} 53. Qc5+ {[%clk 0:00:07]}  Kb1 {[%clk 0:00:14]} 54. Qe5 {[%clk 0:00:05]}  Qd3 {[%clk 0:00:14]} 55. Qe1+ {[%clk 0:00:04]}  Kb2 {[%clk 0:00:14]} 56. Qe5+ {[%clk 0:00:04]}  Ka2 {[%clk 0:00:14]} 57. d7 {[%clk 0:00:03]}  Qxd7 {[%clk 0:00:14]} 58. Qc5 {[%clk 0:00:03]}  Qd4+ {[%clk 0:00:14]} 59. Qxd4 {[%clk 0:00:04]}  Rxd4+ {[%clk 0:00:15]} 60. Kg5 {[%clk 0:00:05]}  Kxb3 {[%clk 0:00:15]} 61. g4 {[%clk 0:00:05]}  Rd7 {[%clk 0:00:16]} 62. h4 {[%clk 0:00:06]}  Kc3 {[%clk 0:00:16]} 63. Kh6 {[%clk 0:00:07]}  b4 {[%clk 0:00:16]} 64. h5 {[%clk 0:00:08]}  b3 {[%clk 0:00:17]} 65. hxg6 {[%clk 0:00:07]}  hxg6 {[%clk 0:00:18]} 66. Kxg6 {[%clk 0:00:08]}  b2 {[%clk 0:00:19]} 67. Kf6 {[%clk 0:00:09]}  b1=Q {[%clk 0:00:19]} 68. g5 {[%clk 0:00:10]}  Qb7 {[%clk 0:00:20]} 69. Kg6 {[%clk 0:00:10]}  Qc6+ {[%clk 0:00:21]} 70. Kh5 {[%clk 0:00:11]}  Qe6 {[%clk 0:00:21]} 71. g6 {[%clk 0:00:12]}  Rd6 {[%clk 0:00:20]} 72. Kh6 {[%clk 0:00:12]}  Qxg6# {[%clk 0:00:20]} 0-1


[Site "https://www.chess.com"]

[Event "Titled Tuesday Blitz May 4 2021"]
[White "Bellahcene, Bilel"]
[Black "Urazayev, Arystanbek"]
[WhiteFideId "696358"]
[BlackFideId "13709810"]
[WhiteElo "2493"]
[BlackElo "2321"]
[Result "1-0"]
[Round "06"]
[TimeControl "180+1"]
[Date "2021.05.04"]
[WhiteClock "0:00:15"]
[BlackClock "0:00:02"]

1. e4 {[%clk 0:02:59]}  c6 {[%clk 0:02:59]} 2. d4 {[%clk 0:02:57]}  d5 {[%clk 0:03:00]} 3. f3 {[%clk 0:02:58]}  e6 {[%clk 0:02:59]} 4. Nc3 {[%clk 0:02:57]}  Nf6 {[%clk 0:02:59]} 5. e5 {[%clk 0:02:58]}  Nfd7 {[%clk 0:02:59]} 6. f4 {[%clk 0:02:58]}  c5 {[%clk 0:03:00]} 7. Nf3 {[%clk 0:02:57]}  Nc6 {[%clk 0:03:00]} 8. Be3 {[%clk 0:02:58]}  Be7 {[%clk 0:03:00]} 9. Qd2 {[%clk 0:02:56]}  O-O {[%clk 0:03:00]} 10. Be2 {[%clk 0:02:56]}  a6 {[%clk 0:02:54]} 11. O-O {[%clk 0:02:54]}  b5 {[%clk 0:02:54]} 12. a3 {[%clk 0:02:54]}  Bb7 {[%clk 0:02:49]} 13. Kh1 {[%clk 0:02:54]}  cxd4 {[%clk 0:02:46]} 14. Nxd4 {[%clk 0:02:54]}  Nxd4 {[%clk 0:02:47]} 15. Bxd4 {[%clk 0:02:55]}  Nc5 {[%clk 0:02:44]} 16. Qe3 {[%clk 0:02:46]}  Rc8 {[%clk 0:02:41]} 17. Rad1 {[%clk 0:02:34]}  Qc7 {[%clk 0:02:39]} 18. Bg4 {[%clk 0:02:14]}  g6 {[%clk 0:02:21]} 19. Qg3 {[%clk 0:02:04]}  Ne4 {[%clk 0:01:51]} 20. Nxe4 {[%clk 0:02:02]}  dxe4 {[%clk 0:01:52]} 21. f5 {[%clk 0:01:59]}  exf5 {[%clk 0:01:24]} 22. Bxf5 {[%clk 0:01:57]}  Rcd8 {[%clk 0:01:15]} 23. c3 {[%clk 0:01:48]}  Bc5 {[%clk 0:00:49]} 24. Qg4 {[%clk 0:01:22]}  Bxd4 {[%clk 0:00:40]} 25. cxd4 {[%clk 0:01:23]}  e3 {[%clk 0:00:41]} 26. Rde1 {[%clk 0:01:12]}  Qc4 {[%clk 0:00:26]} 27. Rf4 {[%clk 0:00:59]}  Kh8 {[%clk 0:00:18]} 28. Qh4 {[%clk 0:00:56]}  Qd5 {[%clk 0:00:14]} 29. Be4 {[%clk 0:00:47]}  Qd7 {[%clk 0:00:14]} 30. Bxb7 {[%clk 0:00:38]}  Qxb7 {[%clk 0:00:14]} 31. Rxe3 {[%clk 0:00:39]}  Rc8 {[%clk 0:00:14]} 32. h3 {[%clk 0:00:27]}  Qd5 {[%clk 0:00:13]} 33. Rf2 {[%clk 0:00:25]}  Kg8 {[%clk 0:00:12]} 34. Kh2 {[%clk 0:00:25]}  Rc4 {[%clk 0:00:12]} 35. Rf4 {[%clk 0:00:23]}  Qe6 {[%clk 0:00:11]} 36. Ref3 {[%clk 0:00:20]}  Qd7 {[%clk 0:00:07]} 37. Qf6 {[%clk 0:00:18]}  Rc6 {[%clk 0:00:06]} 38. Qg5 {[%clk 0:00:16]}  Qd5 {[%clk 0:00:06]} 39. Qh6 {[%clk 0:00:16]}  Re6 {[%clk 0:00:06]} 40. Rh4 {[%clk 0:00:14]}  Rd8 {[%clk 0:00:02]} 41. Qxh7+ {[%clk 0:00:15]} 1-0


[Site "https://www.chess.com"]

[Event "Titled Tuesday Blitz May 4 2021"]
[White "Bologan, Victor"]
[Black "Trost, Edvin"]
[WhiteFideId "13900048"]
[BlackFideId "1729519"]
[WhiteElo "2511"]
[BlackElo "2028"]
[Result "0-1"]
[Round "06"]
[TimeControl "180+1"]
[Date "2021.05.04"]
[WhiteClock "0:00:46"]
[BlackClock "0:01:32"]

1. e4 {[%clk 0:03:00]}  g6 {[%clk 0:02:50]} 2. d4 {[%clk 0:03:00]}  Nf6 {[%clk 0:02:49]} 3. e5 {[%clk 0:02:59]}  Nh5 {[%clk 0:02:49]} 4. Be2 {[%clk 0:02:57]}  d6 {[%clk 0:02:50]} 5. Bxh5 {[%clk 0:02:57]}  gxh5 {[%clk 0:02:50]} 6. Qxh5 {[%clk 0:02:57]}  dxe5 {[%clk 0:02:48]} 7. dxe5 {[%clk 0:02:56]}  Nc6 {[%clk 0:02:45]} 8. Nf3 {[%clk 0:02:56]}  Rg8 {[%clk 0:02:44]} 9. Ng5 {[%clk 0:02:46]}  Qd5 {[%clk 0:02:40]} 10. Nc3 {[%clk 0:02:43]}  Qxe5+ {[%clk 0:02:37]} 11. Be3 {[%clk 0:02:43]}  Rg6 {[%clk 0:02:32]} 12. Qh4 {[%clk 0:02:28]}  h6 {[%clk 0:02:12]} 13. Nf3 {[%clk 0:02:24]}  Qf5 {[%clk 0:02:11]} 14. O-O-O {[%clk 0:02:17]}  Rxg2 {[%clk 0:02:04]} 15. Nd5 {[%clk 0:02:10]}  Bd7 {[%clk 0:01:53]} 16. Nxc7+ {[%clk 0:02:03]}  Kd8 {[%clk 0:01:53]} 17. Nxa8 {[%clk 0:02:02]}  Qxf3 {[%clk 0:01:54]} 18. Rd3 {[%clk 0:01:32]}  Rg4 {[%clk 0:01:48]} 19. Qh5 {[%clk 0:01:00]}  Qxh1+ {[%clk 0:01:43]} 20. Rd1 {[%clk 0:00:59]}  Rg1 {[%clk 0:01:38]} 21. Rxg1 {[%clk 0:00:47]}  Qxg1+ {[%clk 0:01:38]} 22. Kd2 {[%clk 0:00:46]}  Qg6 {[%clk 0:01:32]} 0-1


[Site "https://www.chess.com"]

[Event "Titled Tuesday Blitz May 4 2021"]
[White "Bommini, Mounika Akshaya"]
[Black "Ronka, Erik"]
[WhiteFideId "25019872"]
[BlackFideId "505080"]
[WhiteElo "1610"]
[BlackElo "2264"]
[Result "1-0"]
[Round "06"]
[TimeControl "180+1"]
[Date "2021.05.04"]
[WhiteClock "0:00:22"]
[BlackClock "0:00:03"]

1. e4 {[%clk 0:03:00]}  c6 {[%clk 0:02:59]} 2. d4 {[%clk 0:02:58]}  d5 {[%clk 0:03:00]} 3. e5 {[%clk 0:02:58]}  c5 {[%clk 0:03:00]} 4. c3 {[%clk 0:02:56]}  Nc6 {[%clk 0:02:59]} 5. f4 {[%clk 0:02:53]}  Bf5 {[%clk 0:02:54]} 6. Nf3 {[%clk 0:02:43]}  e6 {[%clk 0:02:54]} 7. Nbd2 {[%clk 0:02:42]}  cxd4 {[%clk 0:02:42]} 8. Nxd4 {[%clk 0:02:39]}  Nge7 {[%clk 0:02:39]} 9. N2f3 {[%clk 0:02:34]}  Be4 {[%clk 0:02:35]} 10. Be3 {[%clk 0:02:23]}  a6 {[%clk 0:02:24]} 11. Bd3 {[%clk 0:02:20]}  Bxf3 {[%clk 0:02:08]} 12. Qxf3 {[%clk 0:02:17]}  Nxd4 {[%clk 0:02:08]} 13. Bxd4 {[%clk 0:02:15]}  g6 {[%clk 0:02:03]} 14. O-O-O {[%clk 0:02:11]}  Nc6 {[%clk 0:01:43]} 15. Bf2 {[%clk 0:02:03]}  Qa5 {[%clk 0:01:36]} 16. Kb1 {[%clk 0:01:58]}  b5 {[%clk 0:01:16]} 17. Rhe1 {[%clk 0:01:54]}  Rb8 {[%clk 0:01:05]} 18. Bc2 {[%clk 0:01:49]}  Be7 {[%clk 0:00:59]} 19. g4 {[%clk 0:01:46]}  O-O {[%clk 0:00:57]} 20. f5 {[%clk 0:01:45]}  b4 {[%clk 0:00:53]} 21. c4 {[%clk 0:01:37]}  b3 {[%clk 0:00:45]} 22. Bxb3 {[%clk 0:01:36]}  dxc4 {[%clk 0:00:36]} 23. Qxc6 {[%clk 0:01:17]}  cxb3 {[%clk 0:00:35]} 24. axb3 {[%clk 0:01:17]}  Rxb3 {[%clk 0:00:29]} 25. Re2 {[%clk 0:01:06]}  Rfb8 {[%clk 0:00:26]} 26. fxe6 {[%clk 0:01:02]}  Ra3 {[%clk 0:00:10]} 27. exf7+ {[%clk 0:01:00]}  Kf8 {[%clk 0:00:07]} 28. Bd4 {[%clk 0:00:26]}  Ra1+ {[%clk 0:00:06]} 29. Kc2 {[%clk 0:00:26]}  Ra4 {[%clk 0:00:05]} 30. Bc3 {[%clk 0:00:23]}  Rxg4 {[%clk 0:00:03]} 31. Bxa5 {[%clk 0:00:22]} 1-0


[Site "https://www.chess.com"]

[Event "Titled Tuesday Blitz May 4 2021"]
[White "Bongo Akanga Ndjila, Barthelemy"]
[Black "Gretarsson, Helgi Ass"]
[WhiteFideId "10609431"]
[BlackFideId "2300699"]
[WhiteElo "1803"]
[BlackElo "2519"]
[Result "0-1"]
[Round "06"]
[TimeControl "180+1"]
[Date "2021.05.04"]
[WhiteClock "0:00:15"]
[BlackClock "0:00:18"]

1. d4 {[%clk 0:03:00]}  g6 {[%clk 0:02:59]} 2. Nf3 {[%clk 0:02:59]}  Bg7 {[%clk 0:03:00]} 3. Bg5 {[%clk 0:03:00]}  d6 {[%clk 0:02:58]} 4. e3 {[%clk 0:03:00]}  Nd7 {[%clk 0:02:57]} 5. Nbd2 {[%clk 0:03:00]}  Ngf6 {[%clk 0:02:52]} 6. Bd3 {[%clk 0:03:00]}  b6 {[%clk 0:02:52]} 7. c3 {[%clk 0:02:59]}  Bb7 {[%clk 0:02:52]} 8. a4 {[%clk 0:02:59]}  a6 {[%clk 0:02:48]} 9. O-O {[%clk 0:02:58]}  c5 {[%clk 0:02:46]} 10. Re1 {[%clk 0:02:58]}  h6 {[%clk 0:02:38]} 11. Bh4 {[%clk 0:02:57]}  g5 {[%clk 0:02:36]} 12. Bg3 {[%clk 0:02:57]}  Nh5 {[%clk 0:02:36]} 13. e4 {[%clk 0:02:56]}  Nxg3 {[%clk 0:02:33]} 14. hxg3 {[%clk 0:02:56]}  e6 {[%clk 0:02:19]} 15. e5 {[%clk 0:02:52]}  g4 {[%clk 0:02:15]} 16. Nh4 {[%clk 0:02:48]}  dxe5 {[%clk 0:02:15]} 17. Qxg4 {[%clk 0:02:45]}  Qg5 {[%clk 0:02:15]} 18. Qe2 {[%clk 0:02:16]}  exd4 {[%clk 0:01:48]} 19. cxd4 {[%clk 0:02:15]}  Bxd4 {[%clk 0:01:32]} 20. Nc4 {[%clk 0:02:11]}  Kf8 {[%clk 0:01:08]} 21. Nf3 {[%clk 0:02:07]}  Qd5 {[%clk 0:01:07]} 22. Be4 {[%clk 0:01:57]}  Qxe4 {[%clk 0:01:06]} 23. Qxe4 {[%clk 0:01:57]}  Bxe4 {[%clk 0:01:06]} 24. Rxe4 {[%clk 0:01:58]}  Bf6 {[%clk 0:01:02]} 25. Rd1 {[%clk 0:01:51]}  Ra7 {[%clk 0:01:02]} 26. b3 {[%clk 0:01:32]}  Ke7 {[%clk 0:00:54]} 27. Rd3 {[%clk 0:01:21]}  h5 {[%clk 0:00:48]} 28. Nd6 {[%clk 0:01:13]}  Rb8 {[%clk 0:00:47]} 29. Nc4 {[%clk 0:01:00]}  b5 {[%clk 0:00:46]} 30. Na5 {[%clk 0:01:00]}  Rb6 {[%clk 0:00:44]} 31. g4 {[%clk 0:00:43]}  c4 {[%clk 0:00:42]} 32. bxc4 {[%clk 0:00:40]}  Nc5 {[%clk 0:00:42]} 33. Ree3 {[%clk 0:00:32]}  Nxd3 {[%clk 0:00:42]} 34. Rxd3 {[%clk 0:00:33]}  hxg4 {[%clk 0:00:42]} 35. Nd2 {[%clk 0:00:30]}  Rd7 {[%clk 0:00:30]} 36. Rxd7+ {[%clk 0:00:27]}  Kxd7 {[%clk 0:00:30]} 37. c5 {[%clk 0:00:27]}  Rb8 {[%clk 0:00:26]} 38. axb5 {[%clk 0:00:23]}  Rxb5 {[%clk 0:00:23]} 39. c6+ {[%clk 0:00:23]}  Kc7 {[%clk 0:00:23]} 40. Nac4 {[%clk 0:00:18]}  a5 {[%clk 0:00:18]} 41. Ne4 {[%clk 0:00:18]}  Be7 {[%clk 0:00:18]} 42. Nc3 {[%clk 0:00:15]}  Rc5 {[%clk 0:00:18]} 43. Nxa5 {[%clk 0:00:13]}  Rxc3 {[%clk 0:00:16]} 44. Nb7 {[%clk 0:00:13]}  Bb4 {[%clk 0:00:16]} 45. Kh2 {[%clk 0:00:11]}  Rxc6 {[%clk 0:00:15]} 46. Kg3 {[%clk 0:00:12]}  Kxb7 {[%clk 0:00:15]} 47. Kxg4 {[%clk 0:00:13]}  Rc2 {[%clk 0:00:15]} 48. f4 {[%clk 0:00:14]}  Rxg2+ {[%clk 0:00:15]} 49. Kf3 {[%clk 0:00:14]}  Rg1 {[%clk 0:00:16]} 50. Ke4 {[%clk 0:00:15]}  Bc5 {[%clk 0:00:16]} 51. Ke5 {[%clk 0:00:16]}  Kc6 {[%clk 0:00:16]} 52. Kf6 {[%clk 0:00:17]}  Kd5 {[%clk 0:00:16]} 53. Kxf7 {[%clk 0:00:17]}  Rf1 {[%clk 0:00:17]} 54. Kg6 {[%clk 0:00:15]}  Rxf4 {[%clk 0:00:17]} 55. Kg5 {[%clk 0:00:16]}  e5 {[%clk 0:00:17]} 56. Kg6 {[%clk 0:00:15]}  e4 {[%clk 0:00:18]} 0-1


[Site "https://www.chess.com"]